bitfinex/quotes_BTCUSD_20250616
["timestamp","ask_amount","ask_price","bid_price","bid_amount"]
[1750071295966,0.35338953,106910.0,106900.0,0.94988884]
[1750071296174,0.78694101,106910.0,106900.0,0.89988884]
[1750071296431,0.78694101,106910.0,106900.0,0.68824884]
[1750071296627,0.80244101,106910.0,106900.0,0.88304884]
[1750071300886,0.80244101,106910.0,106900.0,0.93304884]
[1750071301093,0.80244101,106910.0,106900.0,0.88304884]
[1750071302580,1.25239249,106910.0,106900.0,0.56889253]
[1750071302814,1.25239249,106910.0,106900.0,0.77469171]
[1750071303168,1.25239249,106910.0,106900.0,0.83404589]
[1750071303378,1.25239249,106910.0,106900.0,0.58924589]
[1750071303591,1.27470406,106910.0,106900.0,0.56118326]
[1750071303838,1.27470406,106910.0,106900.0,0.77469189]
[1750071304256,1.27470406,106910.0,106900.0,0.78404607]
[1750071304477,1.30280306,106910.0,106900.0,0.78404607]
[1750071304686,1.28049149,106910.0,106900.0,0.79340016]
[1750071305742,1.28049149,106910.0,106900.0,0.80275408]
[1750071308759,0.41338853,106910.0,106900.0,0.80275408]
[1750071309195,1.26409149,106910.0,106900.0,0.80275408]
[1750071310479,0.39698853,106910.0,106900.0,0.80275408]
[1750071310682,1.26409149,106910.0,106900.0,0.80275408]
[1750071311162,0.39698853,106910.0,106900.0,0.80275408]
[1750071311599,1.26409149,106910.0,106900.0,0.8989033]
[1750071312061,0.83054001,106910.0,106900.0,0.8989033]
[1750071313348,0.83054001,106910.0,106900.0,0.80275408]
[1750071313782,1.26409149,106910.0,106900.0,0.80275408]
[1750071314663,0.39698853,106910.0,106900.0,0.80275408]
[1750071314872,0.83054001,106910.0,106900.0,0.80275408]
[1750071317846,1.26409149,106910.0,106900.0,0.80275408]
[1750071318246,0.39698853,106910.0,106900.0,0.80275408]
[1750071318387,1.26409149,106910.0,106900.0,0.80275408]
[1750071325486,1.26409149,106910.0,106900.0,0.82295129]
[1750071326509,1.26409149,106910.0,106900.0,0.80275408]
[1750071328616,0.39698853,106910.0,106900.0,0.80275408]
[1750071328820,0.83054001,106910.0,106900.0,0.80275408]
[1750071332083,0.83054001,106910.0,106900.0,0.76219408]
[1750071335103,1.26409149,106910.0,106900.0,0.76219408]
[1750071335317,1.26409149,106910.0,106900.0,0.8583433]
[1750071338743,1.26409149,106910.0,106900.0,0.76219408]
[1750071339576,1.26409149,106910.0,106900.0,0.81219408]
[1750071339779,1.26409149,106910.0,106900.0,0.76219408]
[1750071340765,1.26409149,106910.0,106900.0,0.81219408]
[1750071340973,1.26409149,106910.0,106900.0,0.76219408]
[1750071346219,1.27999149,106910.0,106900.0,0.76219408]
[1750071346428,1.26409149,106910.0,106900.0,0.76219408]
[1750071348558,1.26409149,106910.0,106900.0,0.81219408]
[1750071348763,1.26409149,106910.0,106900.0,0.76219408]
[1750071352454,1.26409149,106910.0,106900.0,0.80263408]
[1750071352978,0.39698853,106910.0,106900.0,0.80263408]
[1750071353439,0.78694101,106910.0,106900.0,0.82983156]
[1750071353649,0.78694101,106910.0,106900.0,0.81763408]
[1750071354512,0.78694101,106910.0,106900.0,0.83313408]
[1750071354993,0.78694101,106910.0,106900.0,0.84767493]
[1750071355828,0.78694101,106910.0,106900.0,0.89767493]
[1750071355988,0.78694101,106910.0,106900.0,0.84767493]
[1750071356199,0.35338953,106910.0,106900.0,0.94382415]
[1750071356417,0.78694101,106910.0,106900.0,0.94382415]
[1750071357487,0.78694101,106910.0,106900.0,0.9292833]
[1750071357713,0.78694101,106910.0,106900.0,0.94382415]
[1750071359218,0.35338953,106910.0,106900.0,0.94382415]
[1750071359438,0.78694101,106910.0,106900.0,0.94382415]
[1750071361162,0.35338953,106910.0,106900.0,0.94382415]
[1750071361292,0.78694101,106910.0,106900.0,0.94382415]
[1750071362530,0.35338953,106910.0,106900.0,0.94382415]
[1750071362797,0.78694101,106910.0,106900.0,0.94382415]
[1750071364368,0.78694101,106910.0,106900.0,0.73364415]
[1750071364794,0.78694101,106910.0,106900.0,0.92824415]
[1750071365244,0.35338953,106910.0,106900.0,0.92824415]
[1750071365473,0.78694101,106910.0,106900.0,0.92824415]
[1750071366131,0.35338953,106910.0,106900.0,0.92824415]
[1750071366355,0.78694101,106910.0,106900.0,0.92824415]
[1750071367229,0.35338953,106910.0,106900.0,0.92824415]
[1750071367431,0.78694101,106910.0,106900.0,0.92824415]
[1750071368997,0.78694101,106910.0,106900.0,0.97824415]
[1750071369425,0.78694101,106910.0,106900.0,0.92824415]
[1750071375796,0.78694101,106910.0,106900.0,0.97824415]
[1750071375991,0.78694101,106910.0,106900.0,0.92824415]
[1750071378218,0.80694101,106910.0,106900.0,0.92824415]
[1750071379366,0.80694101,106910.0,106900.0,0.97824415]
[1750071379573,0.80694101,106910.0,106900.0,0.92824415]
[1750071382527,0.80694101,106910.0,106900.0,0.92824415]
[1750071386143,0.80694101,106910.0,106900.0,0.83209493]
[1750071391520,0.37338953,106910.0,106900.0,0.83209493]
[1750071391747,0.80694101,106910.0,106900.0,0.83209493]
[1750071393327,0.80694101,106910.0,106900.0,0.88209493]
[1750071393532,0.80694101,106910.0,106900.0,0.83209493]
[1750071393745,0.80694101,106910.0,106900.0,0.8858172]
[1750071395249,0.80694101,106910.0,106900.0,0.83209493]
[1750071396975,0.37338953,106910.0,106900.0,0.83209493]
[1750071397190,0.80694101,106910.0,106900.0,0.83209493]
[1750071397405,0.80694101,106910.0,106900.0,0.88209493]
[1750071397622,0.80694101,106910.0,106900.0,0.83209493]
[1750071398073,0.80694101,106910.0,106900.0,0.96327267]
[1750071398283,0.80694101,106910.0,106900.0,0.91327267]
[1750071402441,0.80694101,106910.0,106900.0,0.96327267]
[1750071402663,0.80694101,106910.0,106900.0,0.91327267]
[1750071404716,0.80694101,106910.0,106900.0,0.96327267]
[1750071405138,0.80694101,106910.0,106900.0,0.91327267]
[1750071406172,0.80694101,106910.0,106900.0,0.96327267]
[1750071406390,0.80694101,106910.0,106900.0,0.91327267]
[1750071409019,0.80694101,106910.0,106900.0,0.71867267]
[1750071409234,0.80694101,106910.0,106900.0,0.91315267]
[1750071413349,1.25579249,106910.0,106900.0,0.38795408]
[1750071413598,1.27089249,106910.0,106900.0,0.54203408]
[1750071413860,0.40378953,106910.0,106900.0,0.54203408]
[1750071414291,0.43188753,106910.0,106900.0,0.54203408]
[1750071414503,1.29899049,106910.0,106900.0,0.54203408]
[1750071420737,1.29899049,106910.0,106900.0,0.59203408]
[1750071420951,1.29899049,106910.0,106900.0,0.54203408]
[1750071421580,1.29899049,106910.0,106900.0,0.38795408]
[1750071421824,0.41678753,106910.0,106900.0,0.54203408]
[1750071422050,0.85033901,106910.0,106900.0,0.6381833]
[1750071422269,0.85033901,106910.0,106900.0,0.6881833]
[1750071422486,0.41678753,106910.0,106900.0,0.59203408]
[1750071422701,0.80694101,106910.0,106900.0,0.58817493]
[1750071423380,0.80694101,106910.0,106900.0,0.62167493]
[1750071423594,0.80694101,106910.0,106900.0,0.57167493]
[1750071423856,0.80694101,106910.0,106900.0,0.66782415]
[1750071429382,0.37338953,106910.0,106900.0,0.66782415]
[1750071429638,0.80694101,106910.0,106900.0,0.66782415]
[1750071429848,0.80694101,106910.0,106900.0,0.71782415]
[1750071430057,0.80694101,106910.0,106900.0,0.66782415]
[1750071432099,0.80694101,106910.0,106900.0,0.70814415]
[1750071433290,0.82694101,106910.0,106900.0,0.70814415]
[1750071433498,0.82694101,106910.0,106900.0,0.75814415]
[1750071433703,0.82694101,106910.0,106900.0,0.70814415]
[1750071435813,0.82694101,106910.0,106900.0,0.59689493]
[1750071436433,0.84194101,106910.0,106900.0,0.59689493]
[1750071436634,0.40838953,106910.0,106900.0,0.59689493]
[1750071436840,0.84194101,106910.0,106900.0,0.59689493]
[1750071438755,0.84194101,106910.0,106900.0,0.64689493]
[1750071438968,0.84194101,106910.0,106900.0,0.62078475]
[1750071439183,0.84194101,106910.0,106900.0,0.67078475]
[1750071439628,0.84194101,106910.0,106900.0,0.62078475]
[1750071440345,0.84194101,106910.0,106900.0,0.67078475]
[1750071440564,0.84194101,106910.0,106900.0,0.62078475]
[1750071441044,0.84194101,106910.0,106900.0,0.42638475]
[1750071441262,1.27549249,106910.0,106900.0,0.62070475]
[1750071441479,0.84194101,106910.0,106900.0,0.62070475]
[1750071442183,0.84194101,106910.0,106900.0,0.67070475]
[1750071442398,0.84194101,106910.0,106900.0,0.62070475]
[1750071443249,0.84194101,106910.0,106900.0,0.59681493]
[1750071444487,0.82194101,106910.0,106900.0,0.59681493]
[1750071450995,0.82194101,106910.0,106900.0,0.40249493]
[1750071451232,1.25549249,106910.0,106900.0,0.59681493]
[1750071451443,1.25549249,106910.0,106900.0,0.64681493]
[1750071451647,1.25549249,106910.0,106900.0,0.69296415]
[1750071452262,0.82194101,106910.0,106900.0,0.69296415]
[1750071457271,1.25549249,106910.0,106900.0,0.69296415]
[1750071457926,0.82194101,106910.0,106900.0,0.69296415]
[1750071459004,0.38838953,106910.0,106900.0,0.69296415]
[1750071459220,0.82194101,106910.0,106900.0,0.69296415]
[1750071459435,0.82194101,106910.0,106900.0,0.74296415]
[1750071459594,0.82194101,106910.0,106900.0,0.69296415]
[1750071461641,0.82194101,106910.0,106900.0,0.59681493]
[1750071462683,0.38838953,106910.0,106900.0,0.59681493]
[1750071462956,0.80694101,106910.0,106900.0,0.61191493]
[1750071465507,0.80694101,106910.0,106900.0,0.66191493]
[1750071465716,0.80694101,106910.0,106900.0,0.61191493]
[1750071466983,0.80694101,106910.0,106900.0,0.70806415]
[1750071469015,0.80694101,106910.0,106900.0,0.61191493]
[1750071470475,0.80694101,106910.0,106900.0,0.66183493]
[1750071470698,0.80694101,106910.0,106900.0,0.59673493]
[1750071470905,0.82314101,106910.0,106900.0,0.59673493]
[1750071471964,0.82314101,106910.0,106900.0,0.64673493]
[1750071472180,0.82314101,106910.0,106900.0,0.59673493]
[1750071472828,0.82314101,106910.0,106900.0,0.6230148]
[1750071473058,0.82314101,106910.0,106900.0,0.59673493]
[1750071475032,0.82314101,106910.0,106900.0,0.64673493]
[1750071475262,0.82314101,106910.0,106900.0,0.59673493]
[1750071475901,0.82314101,106910.0,106900.0,0.64673493]
[1750071476118,0.82314101,106910.0,106900.0,0.59673493]
[1750071476331,0.82314101,106910.0,106900.0,0.6196903]
[1750071480420,0.82314101,106910.0,106900.0,0.6696903]
[1750071480606,0.82314101,106910.0,106900.0,0.6196903]
[1750071481008,0.82314101,106910.0,106900.0,0.6195703]
[1750071482499,0.82314101,106910.0,106900.0,0.59661493]
[1750071486130,0.82314101,106910.0,106900.0,0.64661493]
[1750071486341,0.82314101,106910.0,106900.0,0.59661493]
[1750071486342,0.82250176,106910.0,106900.0,0.59661493]
[1750071487457,0.85059776,106910.0,106900.0,0.59661493]
[1750071489438,0.85059776,106910.0,106900.0,0.64661493]
[1750071489655,0.85059776,106910.0,106900.0,0.74276415]
[1750071489863,0.85059776,106910.0,106900.0,0.69276415]
[1750071490073,0.85059776,106910.0,106900.0,0.69272415]
[1750071493913,0.83439776,106910.0,106900.0,0.69272415]
[1750071496163,0.83439776,106910.0,106900.0,0.74272415]
[1750071496371,0.83439776,106910.0,106900.0,0.70832415]
[1750071497196,0.85089776,106910.0,106900.0,0.69272415]
[1750071498912,0.85089776,106910.0,106900.0,0.74272415]
[1750071499131,0.85089776,106910.0,106900.0,0.69272415]
[1750071499813,0.85089776,106910.0,106900.0,0.74272415]
[1750071500028,0.85089776,106910.0,106900.0,0.69272415]
[1750071500451,0.85089776,106910.0,106900.0,0.69268415]
[1750071500682,0.83089776,106910.0,106900.0,0.69268415]
[1750071505103,0.83089776,106910.0,106900.0,0.69264415]
[1750071506798,0.81439776,106910.0,106900.0,0.69264415]
[1750071508255,0.38084628,106910.0,106900.0,0.69264415]
[1750071508439,0.81439776,106910.0,106900.0,0.70774415]
[1750071509508,0.38084628,106910.0,106900.0,0.70774415]
[1750071509751,0.81439776,106910.0,106900.0,0.70774415]
[1750071510933,0.81439776,106910.0,106900.0,0.75774415]
[1750071511179,0.81439776,106910.0,106900.0,0.70774415]
[1750071511415,0.81439776,106910.0,106900.0,0.51374415]
[1750071511662,0.81439776,106910.0,106900.0,0.70770415]
[1750071515292,0.81439776,106910.0,106900.0,0.61155493]
[1750071515494,0.81439776,106910.0,106900.0,0.66155493]
[1750071515675,0.81439776,106910.0,106900.0,0.61155493]
[1750071519910,0.81439776,106910.0,106900.0,0.41759493]
[1750071520111,0.38084628,106910.0,106900.0,0.61155493]
[1750071520446,0.81439776,106910.0,106900.0,0.70770415]
[1750071522367,0.81439776,106910.0,106900.0,0.75770415]
[1750071522575,0.81439776,106910.0,106900.0,0.70770415]
[1750071525021,0.81439776,106910.0,106900.0,0.75770415]
[1750071525238,0.81439776,106910.0,106900.0,0.70770415]
[1750071525456,0.38084628,106910.0,106900.0,0.70770415]
[1750071525674,0.81439776,106910.0,106900.0,0.70770415]
[1750071527262,0.38084628,106910.0,106900.0,0.70770415]
[1750071527490,0.81439776,106910.0,106900.0,0.70770415]
[1750071532753,0.38084628,106910.0,106900.0,0.70770415]
[1750071533015,0.81439776,106910.0,106900.0,0.70770415]
[1750071533262,0.38084628,106910.0,106900.0,0.70770415]
[1750071533519,0.81439776,106910.0,106900.0,0.70770415]
[1750071535817,1.26324924,106910.0,106900.0,0.59629493]
[1750071540256,0.39614628,106910.0,106900.0,0.55617493]
[1750071540481,0.82969776,106910.0,106900.0,0.55617493]
[1750071542570,0.82969776,106910.0,106900.0,0.38795408]
[1750071542771,0.82969776,106910.0,106900.0,0.54163408]
[1750071543778,0.82969776,106910.0,106900.0,0.6377833]
[1750071544848,1.26324924,106910.0,106900.0,0.6377833]
[1750071545297,1.26324924,106910.0,106900.0,0.6778633]
[1750071545512,0.82969776,106910.0,106900.0,0.6778633]
[1750071545978,1.26324924,106910.0,106900.0,0.6778633]
[1750071547380,0.82969776,106910.0,106900.0,0.6778633]
[1750071551011,1.26324924,106910.0,106900.0,0.6778633]
[1750071557458,1.24794924,106910.0,106900.0,0.6778633]
[1750071558344,1.24794924,106910.0,106900.0,0.6938633]
[1750071559351,1.24794924,106910.0,106900.0,0.55759408]
[1750071560937,0.38084628,106910.0,106900.0,0.55759408]
[1750071561188,1.24794924,106910.0,106900.0,0.55759408]
[1750071563560,0.38084628,106910.0,106900.0,0.55759408]
[1750071563812,0.81439776,106910.0,106900.0,0.55759408]
[1750071564034,1.24794924,106910.0,106900.0,0.60687905]
[1750071564251,1.24794924,106910.0,106900.0,0.64695905]
[1750071564510,0.81439776,106910.0,106900.0,0.64695905]
[1750071564945,0.81439776,106910.0,106900.0,0.60683905]
[1750071565863,0.81439776,106910.0,106900.0,0.65683905]
[1750071566071,0.81439776,106910.0,106900.0,0.55755408]
[1750071569700,1.24794924,106910.0,106900.0,0.55755408]
[1750071573526,1.24794924,106910.0,106900.0,0.54155408]
[1750071573857,1.26374924,106910.0,106900.0,0.54155408]
[1750071574045,1.26374924,106910.0,106900.0,0.6377033]
[1750071574744,0.39664628,106910.0,106900.0,0.6377033]
[1750071575003,1.26374924,106910.0,106900.0,0.6377033]
[1750071576426,1.24794924,106910.0,106900.0,0.6377033]
[1750071576632,1.24794924,106910.0,106900.0,0.6532033]
[1750071577740,0.38084628,106910.0,106900.0,0.6532033]
[1750071577959,1.24794924,106910.0,106900.0,0.6932833]
[1750071578397,1.24794924,106910.0,106900.0,0.6932433]
[1750071582191,1.24794924,106910.0,106900.0,0.59709408]
[1750071585435,1.24794924,106910.0,106900.0,0.40345408]
[1750071585620,0.81439776,106910.0,106900.0,0.59709408]
[1750071591518,0.81439776,106910.0,106900.0,0.61219408]
[1750071592022,0.38084628,106910.0,106900.0,0.66163493]
[1750071592259,0.01338953,106910.0,106900.0,0.72318415]
[1750071592499,0.78694101,106910.0,106900.0,0.72318415]
[1750071592751,0.77355148,106910.0,106900.0,0.72318415]
[1750071593838,0.77355148,106910.0,106900.0,0.77318415]
[1750071594048,0.77355148,106910.0,106900.0,0.72318415]
[1750071594660,0.75834051,106910.0,106900.0,0.72318415]
[1750071595649,0.77261736,106910.0,106900.0,0.72318415]
[1750071596047,0.35427685,106910.0,106900.0,0.72318415]
[1750071596493,0.35427685,106910.0,106900.0,1.15673563]
[1750071596707,0.35427685,106910.0,106900.0,0.72318415]
[1750071597284,0.35432409,106910.0,106900.0,0.72318415]
[1750071598815,0.35432409,106910.0,106900.0,1.20673563]
[1750071599415,0.01432409,106910.0,106900.0,1.20673563]
[1750071599598,4.724e-05,106910.0,106900.0,1.22673563]
[1750071599805,4.724e-05,106910.0,106900.0,1.20173563]
[1750071600006,4.724e-05,106910.0,106900.0,1.68528711]
[1750071600213,4.724e-05,106910.0,106900.0,1.73528711]
[1750071600456,4.724e-05,106910.0,106900.0,1.16598415]
[1750071600668,4.724e-05,106910.0,106900.0,1.3700971]
[1750071600893,0.43359872,106910.0,106900.0,0.94202415]
[1750071601099,0.43359872,106910.0,106900.0,1.01702415]
[1750071601311,0.43359872,106910.0,106900.0,0.96702415]
[1750071601510,0.43359872,106910.0,106900.0,0.77654415]
[1750071601752,0.43359872,106910.0,106900.0,0.94502415]
[1750071601972,0.43359872,106910.0,106900.0,0.75154415]
[1750071602190,0.43359872,106910.0,106900.0,0.94702415]
[1750071602408,0.43359872,106910.0,106900.0,0.92862415]
[1750071602606,0.43359872,106910.0,106900.0,0.7206033]
[1750071602837,0.00104724,106910.0,106900.0,0.9355833]
[1750071603041,0.43459872,106910.0,106900.0,0.95012415]
[1750071603243,0.43459872,106910.0,106900.0,0.95412415]
[1750071603474,0.43359872,106910.0,106900.0,0.94212415]
[1750071603662,0.43359872,106910.0,106900.0,0.92662415]
[1750071603838,0.43359872,106910.0,106900.0,0.93062415]
[1750071604361,0.8836502,106910.0,106900.0,0.7071033]
[1750071604555,0.8836502,106910.0,106900.0,0.80943408]
[1750071604761,0.79009872,106910.0,106900.0,0.80943408]
[1750071605778,0.79009872,106910.0,106900.0,0.80543408]
[1750071606353,0.35654724,106910.0,106900.0,0.80543408]
[1750071606564,0.79009872,106910.0,106900.0,0.80743408]
[1750071606771,0.79009872,106910.0,106900.0,0.9035833]
[1750071606978,0.79009872,106910.0,106900.0,0.8985833]
[1750071607632,0.79009872,106910.0,106900.0,0.9015833]
[1750071607832,0.35654724,106910.0,106900.0,0.9015833]
[1750071608040,0.79009872,106910.0,106900.0,0.9015833]
[1750071608661,0.79005872,106910.0,106900.0,0.9015833]
[1750071608865,0.79005872,106910.0,106900.0,0.43125253]
[1750071609148,1.2400102,106910.0,106900.0,0.7315833]
[1750071609360,1.2400102,106910.0,106900.0,0.6815833]
[1750071609572,1.2400102,106910.0,106900.0,0.54543408]
[1750071609779,1.2400102,106910.0,106900.0,0.54343408]
[1750071610835,1.2400102,106910.0,106900.0,0.54043408]
[1750071611249,1.2681092,106910.0,106900.0,0.54243408]
[1750071611448,1.2681092,106910.0,106900.0,0.6385833]
[1750071613640,1.2517092,106910.0,106900.0,0.6385833]
[1750071613875,0.81815772,106910.0,106900.0,0.6385833]
[1750071614708,1.2681092,106910.0,106900.0,0.6385833]
[1750071615981,1.2681092,106910.0,106900.0,0.6785833]
[1750071616395,1.2517092,106910.0,106900.0,0.6785833]
[1750071616596,0.81815772,106910.0,106900.0,0.6785833]
[1750071617381,0.38460624,106910.0,106900.0,0.6785833]
[1750071617576,0.81815772,106910.0,106900.0,0.6785833]
[1750071622084,0.81815772,106910.0,106900.0,0.58243408]
[1750071625036,1.2672092,106910.0,106900.0,0.38895408]
[1750071625235,1.2672092,106910.0,106900.0,0.58243408]
[1750071626019,1.2517092,106910.0,106900.0,0.58243408]
[1750071627101,1.2678092,106910.0,106900.0,0.58243408]
[1750071628941,1.2517092,106910.0,106900.0,0.58243408]
[1750071630321,1.2517092,106910.0,106900.0,0.54243408]
[1750071630749,1.2676092,106910.0,106900.0,0.38895408]
[1750071631110,1.2676092,106910.0,106900.0,0.54239408]
[1750071632805,1.2676092,106910.0,106900.0,0.38930155]
[1750071638214,1.28949779,106910.0,106900.0,0.38930155]
[1750071639132,0.42239483,106910.0,106900.0,0.38930155]
[1750071639343,1.2672092,106910.0,106900.0,0.38930155]
[1750071639597,1.72304927,106910.0,106900.0,0.38930155]
[1750071639813,1.28949779,106910.0,106900.0,0.38930155]
[1750071640288,0.42239483,106910.0,106900.0,0.38930155]
[1750071640514,1.2672092,106910.0,106900.0,0.38930155]
[1750071640759,1.28949779,106910.0,106900.0,0.38930155]
[1750071640994,1.28949779,106910.0,106900.0,0.38730155]
[1750071641468,1.72304927,106910.0,106900.0,0.23386155]
[1750071641708,1.72504927,106910.0,106900.0,0.23386155]
[1750071642443,1.29149779,106910.0,106900.0,0.23386155]
[1750071643345,0.3716,106900.0,106890.0,0.04313773]
[1750071643598,2.94130888,106900.0,106890.0,0.18767027]
[1750071643806,1.81638303,106900.0,106890.0,0.18767027]
[1750071644032,1.84868303,106900.0,106890.0,0.18767027]
[1750071644466,1.69524303,106900.0,106890.0,0.18767027]
[1750071644902,1.41566863,106900.0,106890.0,0.18767027]
[1750071645111,1.42166863,106900.0,106890.0,0.18767027]
[1750071646215,1.26822863,106900.0,106890.0,0.18767027]
[1750071646428,1.42166863,106900.0,106890.0,0.18767027]
[1750071647704,1.44945484,106900.0,106890.0,0.18767027]
[1750071650682,1.29601484,106900.0,106890.0,0.18767027]
[1750071650865,0.84639482,106900.0,106890.0,0.18767027]
[1750071651184,0.82989482,106900.0,106890.0,0.34115027]
[1750071651389,0.80760623,106900.0,106890.0,0.35725027]
[1750071651828,0.80760623,106900.0,106890.0,0.45349203]
[1750071652297,0.81060623,106900.0,106890.0,0.45349203]
[1750071652985,0.80760623,106900.0,106890.0,0.45349203]
[1750071653397,0.80860623,106900.0,106890.0,0.45349203]
[1750071654046,0.83670923,106900.0,106890.0,0.45349203]
[1750071654255,0.83070923,106900.0,106890.0,0.45349203]
[1750071654672,0.83370923,106900.0,106890.0,0.46999203]
[1750071655115,0.83370923,106900.0,106890.0,0.45349203]
[1750071657257,0.83370923,106900.0,106890.0,0.30001203]
[1750071657483,0.07638921,106900.0,106890.0,0.28391203]
[1750071657701,0.51020923,106900.0,106890.0,0.28391203]
[1750071657915,1.32205769,106900.0,106890.0,0.18767027]
[1750071663865,1.34994536,106900.0,106890.0,0.18767027]
[1750071665061,1.50342536,106900.0,106890.0,0.18767027]
[1750071666640,1.59966712,106900.0,106890.0,0.18767027]
[1750071667280,0.3556,106890.0,106880.0,0.19418776]
[1750071667452,1.23884004,106890.0,106880.0,0.19418776]
[1750071667651,1.41470848,106890.0,106880.0,0.19418776]
[1750071668034,1.44281748,106890.0,106880.0,0.20294606]
[1750071668434,1.44281748,106890.0,106880.0,0.20294613]
[1750071668646,1.44281748,106890.0,106880.0,0.19418776]
[1750071669045,1.44281748,106890.0,106880.0,0.20294613]
[1750071669252,1.44281748,106890.0,106880.0,0.19418776]
[1750071669666,1.44381748,106890.0,106880.0,0.19418776]
[1750071670287,1.54005924,106890.0,106880.0,0.15672191]
[1750071670499,1.97387926,106890.0,106880.0,0.15672191]
[1750071672181,1.97387926,106890.0,106880.0,0.16548469]
[1750071672394,1.97387926,106890.0,106880.0,0.15672191]
[1750071672803,1.97387926,106890.0,106880.0,0.15772191]
[1750071673009,1.54005924,106890.0,106880.0,0.15772191]
[1750071674357,1.97387926,106890.0,106880.0,0.15772191]
[1750071674778,1.54005924,106890.0,106880.0,0.15772191]
[1750071675923,1.38641924,106890.0,106880.0,0.15772191]
[1750071676159,1.54017924,106890.0,106880.0,0.15772191]
[1750071678352,1.54017924,106890.0,106880.0,0.1664844]
[1750071678561,1.54017924,106890.0,106880.0,0.15772191]
[1750071678753,1.54017924,106890.0,106880.0,0.1664844]
[1750071678950,1.54017924,106890.0,106880.0,0.15772191]
[1750071679174,1.54017924,106890.0,106880.0,0.1664844]
[1750071679372,1.54017924,106890.0,106880.0,0.15772191]
[1750071679781,1.54017924,106890.0,106880.0,0.16648439]
[1750071680154,1.54017924,106890.0,106880.0,0.15772191]
[1750071680366,1.56806691,106890.0,106880.0,0.15772191]
[1750071680757,1.42825748,106890.0,106880.0,0.15772191]
[1750071680960,1.27457748,106890.0,106880.0,0.15772191]
[1750071681303,1.41273748,106890.0,106880.0,0.17272191]
[1750071681966,1.41273748,106890.0,106880.0,0.15772191]
[1750071682156,1.42913748,106890.0,106880.0,0.15772191]
[1750071682376,1.42917748,106890.0,106880.0,0.15772191]
[1750071682997,1.44447748,106890.0,106880.0,0.15772191]
[1750071683412,1.47236515,106890.0,106880.0,0.15772191]
[1750071685372,1.56860691,106890.0,106880.0,0.15772191]
[1750071687427,1.60579048,106890.0,106880.0,0.15772191]
[1750071689199,1.60579048,106890.0,106880.0,0.13513191]
[1750071689376,1.57790281,106890.0,106880.0,0.13513191]
[1750071689595,1.60571604,106890.0,106880.0,0.08830193]
[1750071689812,1.56853247,106890.0,106880.0,0.01971125]
[1750071690034,2.00235249,106890.0,106880.0,0.18709247]
[1750071690271,2.00235249,106890.0,106880.0,0.20580372]
[1750071690497,2.00235249,106890.0,106880.0,0.15897374]
[1750071690734,2.00235249,106890.0,106880.0,0.11214376]
[1750071691375,2.00235249,106890.0,106880.0,0.06531378]
[1750071691609,2.00235249,106890.0,106880.0,0.01871125]
[1750071692074,1.97065249,106890.0,106870.0,0.14813586]
[1750071692296,1.39272004,106880.0,106870.0,0.14813586]
[1750071692516,1.41494848,106880.0,106870.0,0.15749232]
[1750071692749,1.41494848,106880.0,106870.0,0.16684904]
[1750071693204,1.44306248,106880.0,106870.0,0.16684904]
[1750071694078,1.44606248,106880.0,106870.0,0.16684904]
[1750071694508,1.44506248,106880.0,106870.0,0.16684904]
[1750071696018,1.44706248,106880.0,106870.0,0.16684904]
[1750071696655,1.45106248,106880.0,106870.0,0.16684904]
[1750071697536,1.45106248,106880.0,106870.0,0.12001818]
[1750071697785,1.54730424,106880.0,106870.0,0.07318732]
[1750071698038,1.54730424,106880.0,106870.0,0.01871318]
[1750071698263,1.57511747,106880.0,106870.0,0.20584043]
[1750071698497,0.3562,106870.0,106850.0,0.18716239]
[1750071698697,1.37806004,106860.0,106850.0,0.18716239]
[1750071698962,1.40028848,106860.0,106850.0,0.18716239]
[1750071699196,1.40028848,106860.0,106850.0,0.20587925]
[1750071699447,1.42840448,106860.0,106850.0,0.20587925]
[1750071699925,1.42840448,106860.0,106850.0,0.20591925]
[1750071700854,1.42840448,106860.0,106850.0,0.20691925]
[1750071705702,1.41190448,106860.0,106850.0,0.22251925]
[1750071706562,1.25798448,106860.0,106850.0,0.22251925]
[1750071706785,1.41174448,106860.0,106850.0,0.23831925]
[1750071707021,1.41374448,106860.0,106850.0,0.23831925]
[1750071707463,1.41374448,106860.0,106850.0,0.22251925]
[1750071707669,1.41366448,106860.0,106850.0,0.22151925]
[1750071707888,1.25998448,106860.0,106850.0,0.22151925]
[1750071708347,0.54602444,106860.0,106850.0,0.22151925]
[1750071708564,1.25998448,106860.0,106850.0,0.22151925]
[1750071708783,1.41366448,106860.0,106850.0,0.22151925]
[1750071709208,1.41466448,106860.0,106850.0,0.22151925]
[1750071710545,1.26098448,106860.0,106850.0,0.22151925]
[1750071710771,1.41466448,106860.0,106850.0,0.23711925]
[1750071711685,1.26098448,106860.0,106850.0,0.23711925]
[1750071711907,1.26098448,106860.0,106850.0,0.22151925]
[1750071712212,1.41462448,106860.0,106850.0,0.22151925]
[1750071714990,1.41462448,106860.0,106850.0,0.22251925]
[1750071715212,1.43112448,106860.0,106850.0,0.20591925]
[1750071716104,1.41462448,106860.0,106850.0,0.20591925]
[1750071716313,1.41462448,106860.0,106850.0,0.22241925]
[1750071717600,1.45843771,106860.0,106850.0,0.20591925]
[1750071718460,1.44243771,106860.0,106850.0,0.22111925]
[1750071720901,1.44243771,106860.0,106850.0,0.20591925]
[1750071721119,1.44243771,106860.0,106850.0,0.22181925]
[1750071721767,1.44243771,106860.0,106850.0,0.20591925]
[1750071723923,1.45763771,106860.0,106850.0,0.20591925]
[1750071724167,1.44243771,106860.0,106850.0,0.20591925]
[1750071724374,1.44243771,106860.0,106850.0,0.22181925]
[1750071729393,1.44251624,106860.0,106850.0,0.22181925]
[1750071734617,1.47969981,106860.0,106850.0,0.22181925]
[1750071737052,1.9144759,106860.0,106850.0,0.22181925]
[1750071738941,0.61205977,106860.0,106850.0,0.22181925]
[1750071739148,1.9144759,106860.0,106850.0,0.22181925]
[1750071747143,1.9306759,106860.0,106850.0,0.20591925]
[1750071748412,1.9144759,106860.0,106850.0,0.20591925]
[1750071750078,1.9144759,106860.0,106850.0,0.22161925]
[1750071757280,1.7608359,106860.0,106850.0,0.22161925]
[1750071757488,1.9143959,106860.0,106850.0,0.22161925]
[1750071760917,1.8642757,106860.0,106850.0,0.22161925]
[1750071761150,1.91441715,106860.0,106850.0,0.22161925]
[1750071762862,0.42125745,106860.0,106850.0,0.25731925]
[1750071763104,0.031116,106860.0,106850.0,0.50712101]
[1750071763310,0.46525471,106860.0,106850.0,0.50712101]
[1750071763531,0.89939342,106860.0,106850.0,0.50712101]
[1750071763739,0.031116,106860.0,106850.0,0.99166186]
[1750071763946,0.46525471,106860.0,106850.0,1.12781108]
[1750071764156,0.46425471,106860.0,106850.0,1.12781108]
[1750071764367,0.46425471,106860.0,106850.0,1.12881108]
[1750071764578,0.46225471,106860.0,106850.0,1.07881108]
[1750071764819,0.46225471,106860.0,106850.0,1.12881108]
[1750071765036,0.028116,106860.0,106850.0,1.12881108]
[1750071767865,0.43387346,106880.0,106870.0,0.26761368]
[1750071768081,0.07519857,106890.0,106880.0,0.24759353]
[1750071768082,0.50907203,106890.0,106880.0,0.24759353]
[1750071768746,0.87717803,106890.0,106880.0,0.24759353]
[1750071770225,0.87717803,106890.0,106880.0,0.40111353]